bitfinex/quotes_SOLUSD_20250416
["timestamp","ask_amount","ask_price","bid_price","bid_amount"]
[1744846976275,17.07739679,130.93,130.89,19.13936237]
[1744846976457,5.5779107,130.93,130.89,19.13936237]
[1744846976659,117.51664698,130.94,130.89,19.13936237]
[1744846977159,2.78931539,130.93,130.89,19.13936237]
[1744846977886,117.51664698,130.94,130.89,19.13936237]
[1744846978483,5.58025738,130.93,130.89,19.13936237]
[1744846978875,5.58025738,130.93,130.9,11.49948609]
[1744846979072,117.51664698,130.94,130.9,11.49948609]
[1744846979878,2.79095642,130.93,130.9,11.49948609]
[1744846980080,2.79095642,130.93,130.91,11.49948609]
[1744846980486,2.79095642,130.93,130.9,19.13883564]
[1744846980783,90.43713037,130.94,130.9,19.13883564]
[1744846980979,82.8,130.94,130.9,19.13883564]
[1744846981168,82.8,130.94,130.91,11.49948609]
[1744846981572,5.58905569,130.93,130.91,11.49948609]
[1744846982174,82.8,130.94,130.91,11.49948609]
[1744846982575,82.8,130.94,130.92,11.49948609]
[1744846982778,82.8,130.94,130.91,11.49948609]
[1744846983286,82.8,130.94,130.92,11.49948609]
[1744846983483,15.643,130.95,130.92,11.49948609]
[1744846984194,0.063,130.95,130.93,11.49948609]
[1744846985167,0.063,130.95,130.92,19.13767558]
[1744846985367,0.063,130.95,130.92,11.49948609]
[1744846986698,11.56248609,130.95,130.88,19.1011271]
[1744846986994,11.56248609,130.95,130.9,11.49948609]
[1744846986995,82.863,130.95,130.9,11.49948609]
[1744846987194,101.99954272,130.95,130.9,11.49948609]
[1744846987569,101.99954272,130.95,130.9,19.13889948]
[1744846989190,101.99954272,130.95,130.91,19.1381184]
[1744846989377,90.50005663,130.95,130.91,19.1381184]
[1744846990488,5.60057543,130.94,130.91,19.1381184]
[1744846991196,5.60057543,130.94,130.92,11.49948609]
[1744846991394,82.863,130.95,130.92,11.49948609]
[1744846991691,82.863,130.95,130.93,11.49948609]
[1744846991869,82.863,130.95,130.92,11.49948609]
[1744846993976,5.60170164,130.94,130.92,11.49948609]
[1744846994482,82.863,130.95,130.92,19.13758919]
[1744846995797,0.063,130.95,130.94,37.49948609]
[1744846995990,0.063,130.98,130.94,37.49948609]
[1744846996188,0.063,130.98,130.97,11.49948609]
[1744846998095,0.063,130.98,130.97,19.13482242]
[1744847000221,0.063,130.98,130.97,45.13482242]
[1744847000402,0.063,131.0,130.98,30.14913495]
[1744847000590,0.063,131.0,130.99,11.49948609]
[1744847002989,0.063,131.0,130.99,19.13365663]
[1744847003181,0.063,131.0,130.99,25.56997599]
[1744847006608,0.063,131.0,130.99,17.93580545]
[1744847007893,0.063,131.0,130.98,17.93580545]
[1744847009898,0.063,131.0,130.97,17.93580545]
[1744847014431,0.063,131.0,130.98,17.93580545]
[1744847019612,0.063,131.0,130.97,17.93580545]
[1744847023133,0.063,131.0,130.97,11.48536018]
[1744847025006,0.063,131.0,130.99,11.48536018]
[1744847025434,0.063,131.0,130.94,26.0]
[1744847025634,11.48536018,130.97,130.92,11.48536018]
[1744847026134,19.12114166,130.97,130.92,11.48536018]
[1744847026342,19.12114166,130.97,130.92,19.12327642]
[1744847026556,11.48536018,130.97,130.93,11.48536018]
[1744847026747,101.92038212,130.98,130.93,11.48536018]
[1744847027449,94.28536018,130.98,130.94,11.48536018]
[1744847027832,101.92029864,130.98,130.93,11.48536018]
[1744847028647,101.92029864,130.98,130.93,19.12300566]
[1744847028847,11.48536018,130.97,130.93,19.12300566]
[1744847029034,11.48536018,130.97,130.92,19.12338716]
[1744847030268,19.12069993,130.97,130.92,19.12338716]
[1744847031657,101.92069993,130.97,130.92,19.12338716]
[1744847032156,101.92069993,130.97,130.93,19.12284195]
[1744847033259,101.92069993,130.97,130.93,11.48536018]
[1744847033661,101.92069993,130.97,130.92,19.12336631]
[1744847035456,82.8,130.97,130.93,19.12278141]
[1744847035659,101.92084118,130.97,130.93,19.12278141]
[1744847036166,94.28536018,130.97,130.93,19.12278141]
[1744847036468,101.92075057,130.97,130.93,19.12278141]
[1744847037954,101.92075057,130.97,130.93,11.48536018]
[1744847038140,11.48536018,130.96,130.92,7.63807765]
[1744847038348,11.48536018,130.95,130.91,45.12391295]
[1744847038547,11.48536018,130.96,130.91,45.12391295]
[1744847039346,19.12171922,130.96,130.91,45.12391295]
[1744847042563,94.28536018,130.97,130.93,11.48536018]
[1744847042770,11.48536018,130.96,130.92,11.48536018]
[1744847042971,11.48536018,130.96,130.91,37.48536018]
[1744847042972,6.5578,130.95,130.91,37.48536018]
[1744847043275,100.84316018,130.95,130.91,37.48536018]
[1744847043560,100.84316018,130.95,130.91,26.0]
[1744847043770,100.84316018,130.95,130.91,37.48536018]
[1744847044073,89.3578,130.95,130.93,11.48536018]
[1744847044259,82.8,130.95,130.93,11.48536018]
[1744847044454,89.1945,130.98,130.94,11.48536018]
[1744847044653,0.063,131.0,130.97,11.48536018]
[1744847044853,0.063,131.0,130.99,11.48536018]
[1744847045661,0.063,131.0,130.97,26.0]
[1744847045847,0.063,131.0,130.97,37.48536018]
[1744847046049,7.69680082,131.0,130.97,26.0]
[1744847046274,19.182161,131.0,130.97,26.0]
[1744847046577,0.063,131.0,130.98,11.48536018]
[1744847046972,7.69665664,131.0,130.97,37.48536018]
[1744847048055,7.69665664,131.0,130.97,11.48536018]
[1744847051989,0.063,131.0,130.97,11.48536018]
[1744847052177,0.063,131.0,130.96,26.0]
[1744847052368,0.063,131.0,130.99,11.48536018]
[1744847052568,0.063,131.0,130.98,11.48536018]
[1744847052871,0.063,131.0,130.97,11.48536018]
[1744847053078,0.063,131.0,130.98,11.48536018]
[1744847055873,0.063,131.0,130.99,11.48536018]
[1744847057186,0.063,131.0,130.99,19.11953072]
[1744847057481,0.063,131.0,130.99,11.48536018]
[1744847058557,0.063,131.0,130.99,64.19566429]
[1744847058859,0.063,131.0,130.99,63.76917958]
[1744847059885,0.063,131.0,130.99,33.63417054]
[1744847060182,0.063,131.0,130.99,45.11953072]
[1744847060691,0.063,131.0,130.99,33.63417054]
[1744847060894,0.063,131.0,130.99,45.11953072]
[1744847065388,0.063,131.0,130.99,63.76917958]
[1744847067393,0.063,131.0,130.99,56.13500904]
[1744847067803,0.063,131.0,130.99,63.76917958]
[1744847068295,0.063,131.0,130.99,56.13500904]
[1744847068896,0.063,131.0,130.99,37.48536018]
[1744847069069,0.063,131.0,130.99,45.11953072]
[1744847069275,0.063,131.0,130.99,63.76917958]
[1744847070594,0.063,131.0,130.99,26.0]
[1744847070796,0.063,131.0,130.97,11.48536018]
[1744847071094,11.54836018,131.0,130.94,26.28650772]
[1744847071296,11.54836018,131.0,130.96,11.48536018]
[1744847071497,11.54836018,131.0,130.93,15.83]
[1744847071498,82.863,131.0,130.93,15.83]
[1744847071707,11.48536018,130.99,130.95,11.48536018]
[1744847072296,82.863,131.0,130.95,11.48536018]
[1744847072495,7.63475339,130.98,130.95,11.48536018]
[1744847074488,7.63475339,130.98,130.94,11.48536018]
[1744847076316,7.63475339,130.98,130.95,11.48536018]
[1744847076481,7.63475339,130.98,130.97,11.48536018]
[1744847077308,90.43430108,130.99,130.97,11.48536018]
[1744847077512,90.43430108,130.99,130.98,11.48536018]
[1744847078301,82.8,130.99,130.98,11.48536018]
[1744847081411,7.69672916,131.0,130.98,11.48536018]
[1744847082095,0.063,131.0,130.98,11.48536018]
[1744847082488,7.69669239,131.0,130.98,11.48536018]
[1744847084211,0.063,131.0,130.98,11.48536018]
[1744847086497,0.063,131.0,130.96,26.0]
[1744847086812,0.063,131.0,130.98,11.48536018]
[1744847087708,0.063,131.0,130.97,11.48536018]
[1744847089122,0.063,131.0,130.96,26.0]
[1744847089296,1.5099,130.96,130.93,0.03]
[1744847089492,11.48536018,130.95,130.93,0.03]
[1744847089709,7.5781,130.96,130.93,0.03]
[1744847091022,84.3172,130.98,130.93,0.03]
[1744847091334,7.63591936,130.96,130.93,0.03]
[1744847091926,7.63591936,130.96,130.93,11.51536018]
[1744847094150,90.4354498,130.97,130.94,11.48536018]
[1744847098153,90.4354498,130.97,130.93,11.51536018]
[1744847099054,90.4354498,130.97,130.93,0.03]
[1744847099055,101.92080998,130.97,130.93,0.03]
[1744847099254,11.48536018,130.96,130.93,0.03]
[1744847099426,101.92080998,130.97,130.93,0.03]
[1744847099621,11.48536018,130.96,130.93,0.03]
[1744847100247,11.48536018,130.96,130.92,37.51536018]
[1744847100248,26.0,130.93,130.89,0.03]
[1744847100543,57.4268009,130.9,130.89,0.03]
[1744847100841,11.48536018,130.9,130.89,0.03]
[1744847101042,82.8,130.91,130.89,0.03]
[1744847101253,94.28536018,130.91,130.89,0.03]
[1744847101443,11.48536018,130.9,130.89,0.03]
[1744847101624,17.06624559,130.9,130.89,0.03]
[1744847102247,24.70566499,130.9,130.89,0.03]
[1744847102447,19.12477958,130.9,130.89,0.03]
[1744847102832,27.20724115,130.9,130.89,0.03]
[1744847103638,46.14121315,130.9,130.89,0.03]
[1744847103852,27.20724115,130.9,130.89,0.03]
[1744847104237,27.06507958,130.9,130.89,0.03]
[1744847104439,15.5797194,130.9,130.89,0.03]
[1744847104642,90.43906369,130.91,130.89,0.03]
[1744847104839,101.92442387,130.91,130.89,0.03]
[1744847105034,11.48536018,130.9,130.89,0.03]
[1744847105243,76.50293447,130.9,130.89,0.03]
[1744847105435,110.39463447,130.9,130.89,1e-08]
[1744847105631,82.94216157,130.88,130.85,0.03]
[1744847105836,11.48536018,130.86,130.85,0.03]
[1744847106035,30.56149375,130.86,130.85,0.03]
[1744847106251,38.20324829,130.86,130.85,0.03]
[1744847106556,38.20324829,130.86,130.85,1e-08]
[1744847107148,44.71521635,130.86,130.85,1e-08]
[1744847108348,25.63908278,130.86,130.85,1e-08]
[1744847108741,44.71521635,130.86,130.85,1e-08]
[1744847110060,44.933972,130.84,130.83,1e-08]
[1744847110259,70.57422289,130.84,130.83,1e-08]
[1744847110758,25.64025089,130.84,130.83,1e-08]
[1744847111351,7.64292265,130.84,130.83,1e-08]
[1744847111552,33.38887764,130.85,130.83,1e-08]
[1744847111758,17.99732824,130.84,130.83,1e-08]
[1744847112441,25.64025089,130.84,130.83,1e-08]
[1744847113062,25.78241246,130.84,130.83,1e-08]
[1744847113565,88.7137127,130.84,130.83,1e-08]
[1744847113748,26.0,130.81,130.8,0.03]
[1744847113954,60.03948981,130.81,130.8,0.03]
[1744847114452,67.68416529,130.81,130.8,0.03]
[1744847115168,86.61813729,130.81,130.8,0.03]
[1744847115663,7.64350684,130.83,130.8,0.03]
[1744847115961,7.64350684,130.83,130.8,18.02732824]
[1744847116549,7.64292265,130.84,130.8,18.02732824]
[1744847116866,25.64025089,130.84,130.8,18.02732824]
[1744847117866,41.53984505,130.85,130.81,17.99732824]
[1744847118168,41.53984505,130.85,130.8,18.02732824]
[1744847118868,17.99732824,130.84,130.8,18.02732824]
[1744847119051,17.99732824,130.83,130.8,0.03]
[1744847119455,17.99732824,130.81,130.8,0.03]
[1744847119968,26.27618981,130.81,130.8,0.03]
[1744847120872,33.92086529,130.81,130.8,0.03]
[1744847121767,52.85483729,130.81,130.8,0.03]
[1744847126871,52.85483729,130.81,130.8,1e-08]
[1744847131071,7.64467548,130.81,130.8,1e-08]
[1744847131274,7.64292265,130.84,130.8,17.99732825]
[1744847131496,7.64175454,130.86,130.82,17.99732824]
[1744847131793,25.63908278,130.86,130.82,17.99732824]
[1744847132375,17.99732824,130.84,130.8,17.99732825]
[1744847132685,25.64060528,130.84,130.8,17.99732825]
[1744847133990,17.99732824,130.85,130.81,17.99732824]
[1744847134190,17.99732824,130.86,130.81,17.99732824]
[1744847134402,17.99732824,130.85,130.81,17.99732824]
[1744847134993,7.64292265,130.84,130.81,17.99732824]
[1744847135167,7.64292265,130.84,130.8,25.64248564]
[1744847136388,7.64292265,130.84,130.8,17.99732825]
[1744847136581,25.64025089,130.84,130.8,1e-08]
[1744847138301,17.99732824,130.83,130.8,1e-08]
[1744847138585,17.99732824,130.82,130.8,1e-08]
[1744847138978,100.79732824,130.83,130.8,1e-08]
[1744847139190,82.8,130.83,130.8,1e-08]
[1744847139396,82.8,130.83,130.8,17.99732825]
[1744847139581,82.8,130.83,130.8,1e-08]
[1744847141199,90.44352927,130.83,130.8,1e-08]
[1744847142999,7.64352927,130.83,130.8,1e-08]
[1744847144194,17.99732824,130.82,130.8,1e-08]
[1744847144578,25.64085751,130.83,130.8,1e-08]
[1744847145194,13.21995582,130.82,130.8,1e-08]
[1744847146102,7.64415918,130.82,130.8,1e-08]
[1744847146997,7.64377412,130.83,130.8,1e-08]
[1744847147186,82.8,130.85,130.8,17.99732825]
[1744847147387,7.64314081,130.84,130.8,17.99732825]
[1744847148696,7.64314081,130.84,130.81,17.99732824]
[1744847149084,82.863,130.9,130.83,43.99732824]
[1744847149295,5.58556439,130.89,130.87,17.99732824]
[1744847149791,5.58556439,130.89,130.88,17.99732824]
[1744847149998,5.58556439,130.89,130.88,19.50142824]
[1744847150389,0.063,130.9,130.88,19.50142824]
[1744847150586,0.063,130.9,130.89,26.0]
[1744847150903,0.063,130.9,130.86,17.99732824]
[1744847151503,0.063,130.9,130.86,25.63886656]
[1744847152203,0.063,130.9,130.86,17.99732824]
[1744847152717,0.063,130.9,130.89,17.99732824]
[1744847152883,0.063,130.9,130.89,43.99732824]
[1744847154320,0.063,130.9,130.89,51.63733129]
[1744847156318,0.063,130.9,130.89,70.28698015]
[1744847156915,0.063,130.9,130.89,70.71346486]
[1744847157296,0.063,130.9,130.89,76.78298015]
[1744847161312,0.063,130.9,130.89,70.28698015]
[1744847163829,0.063,130.9,130.89,26.0]
[1744847164621,0.063,130.9,130.89,70.28698015]
[1744847166240,82.863,130.96,130.89,62.7107931]
[1744847166542,0.063,130.96,130.95,17.99732824]
[1744847167029,0.063,130.96,130.95,62.6469771]
[1744847167219,0.063,130.96,130.95,43.99732824]
[1744847167730,0.063,130.96,130.95,26.0]
[1744847168033,0.063,130.96,130.95,43.99732824]
[1744847168635,0.063,130.96,130.95,51.63383072]
[1744847170628,0.063,130.96,130.95,43.99732824]
[1744847170826,0.063,130.96,130.95,51.63383072]
[1744847172720,0.063,130.96,130.95,70.28347958]
[1744847174306,0.063,130.96,130.95,70.70996429]
[1744847177827,0.063,130.96,130.95,46.30476429]
[1744847179121,0.063,130.98,130.97,44.64964886]
[1744847179437,0.063,130.98,130.97,81.07079005]
[1744847179931,0.063,130.98,130.97,88.70612638]
[1744847182030,0.063,131.0,130.99,63.07346181]
[1744847183430,0.063,131.0,130.99,62.6469771]
[1744847184038,0.063,131.0,130.99,51.63149878]
[1744847186134,0.063,131.0,130.99,70.28114764]
[1744847186328,0.063,131.0,130.99,70.70763235]
[1744847190336,0.063,131.0,130.99,70.28114764]
[1744847191021,0.063,131.0,130.99,51.63149878]
[1744847191217,0.063,131.0,130.99,26.0]
[1744847192223,0.063,131.0,130.99,43.99732824]
[1744847193743,0.063,131.0,130.99,26.0]
[1744847193950,0.063,131.0,130.94,15.7]
[1744847194243,18.06032824,131.0,130.96,17.99732824]
[1744847194439,25.69409504,131.0,130.96,17.99732824]
[1744847194641,108.49409504,131.0,130.95,17.99732824]
[1744847194944,17.99732824,130.99,130.94,17.99732824]
[1744847195143,17.99732824,130.98,130.94,17.99732824]
[1744847195752,90.4967668,131.0,130.94,17.99732824]
[1744847196056,17.99732824,130.99,130.94,17.99732824]
[1744847196427,7.63475339,130.98,130.94,17.99732824]
[1744847196647,17.99732824,130.95,130.85,25.53397229]
[1744847196826,17.99732824,130.92,130.87,17.99732824]
[1744847197632,17.99732824,130.92,130.88,17.99732824]
[1744847198032,7.63883584,130.91,130.87,17.99732824]
[1744847198233,32.06946408,130.91,130.86,26.0]
[1744847198445,33.60526408,130.91,130.87,17.99732824]
[1744847199123,17.99732824,130.9,130.86,17.99732824]
[1744847199330,7.9691,130.91,130.88,43.99732824]
[1744847199670,15.58,130.93,130.9,17.99732824]
[1744847200157,23.21773804,130.93,130.9,17.99732824]
[1744847200333,41.21506628,130.93,130.88,43.99732824]
[1744847200654,17.99732824,130.92,130.87,17.99732824]
[1744847201663,25.63612141,130.92,130.87,17.99732824]
[1744847201960,17.99732824,130.89,130.85,17.99732824]
[1744847202133,17.99732824,130.89,130.85,43.99732824]
[1744847202462,100.79732824,130.9,130.85,43.99732824]
[1744847202967,108.43691039,130.9,130.85,51.63966235]
[1744847203733,82.8,130.9,130.87,17.99732824]
[1744847204438,82.8,130.9,130.86,17.99732824]
[1744847205352,100.79732824,130.9,130.86,17.99732824]
[1744847205563,82.8,130.9,130.87,17.99732824]
[1744847205938,82.8,130.9,130.89,17.99732824]
[1744847206140,82.8,130.92,130.89,17.99732824]
[1744847206565,6.4729,130.95,130.91,17.99732824]
[1744847206856,1.5625,130.97,130.94,17.99732824]
[1744847207072,1.5625,130.97,130.96,17.99732824]
[1744847208164,1.5625,130.97,130.95,17.99732824]
[1744847211753,19.55982824,130.97,130.92,17.99732824]
[1744847211953,108.43339467,130.96,130.91,51.63573341]
[1744847212868,82.8,130.96,130.92,17.99732824]
[1744847213072,82.8,130.96,130.93,17.99732824]
[1744847213448,82.8,130.96,130.94,17.99732824]
[1744847213648,1.5625,130.97,130.94,17.99732824]
[1744847213869,1.5625,130.97,130.93,17.99732824]
[1744847214974,1.5625,130.97,130.94,17.99732824]
[1744847215166,1.5625,130.97,130.95,17.99732824]
[1744847217376,82.8,130.98,130.95,17.99732824]
[1744847218273,6.5574,130.99,130.96,17.99732824]
[1744847219770,17.99732824,130.98,130.94,43.99732824]
[1744847219979,17.99732824,130.98,130.93,17.99732824]
[1744847220174,14.19161133,130.99,130.94,17.99732824]
[1744847220175,114.98893957,130.99,130.94,17.99732824]
[1744847222469,17.99732824,130.98,130.93,17.99732824]
[1744847222772,96.99161133,130.99,130.94,17.99732824]
[1744847222959,17.99732824,130.98,130.94,17.99732824]
[1744847223161,96.99161133,130.99,130.95,17.99732824]
[1744847223482,96.49161133,130.99,130.95,17.99732824]
[1744847224671,96.49161133,130.99,130.96,17.99732824]
[1744847225511,82.8,130.99,130.96,17.99732824]
[1744847225695,82.8,130.99,130.97,17.99732824]
[1744847225862,82.8,130.99,130.98,17.99732824]
[1744847226058,7.69660618,131.0,130.97,17.99732824]
[1744847226274,25.69393442,131.0,130.95,43.99732824]
[1744847226469,32.03073442,131.0,130.95,43.99732824]
[1744847226790,100.79732824,130.99,130.95,17.99732824]
[1744847226993,14.03340618,131.0,130.91,17.99732824]
[1744847226994,17.99732824,130.96,130.91,17.99732824]
[1744847227164,17.99732824,130.96,130.91,43.99732824]
[1744847227488,7.63650248,130.95,130.91,43.99732824]
[1744847228095,82.8,130.97,130.93,17.99732824]
[1744847228278,1.6566,130.98,130.96,17.99732824]
[1744847229076,6.3998,131.0,130.97,17.99732824]
[1744847229282,6.3998,131.0,130.98,17.99732824]
[1744847230606,0.063,131.0,130.98,17.99732824]
[1744847233699,0.063,131.0,130.96,26.0]
[1744847233890,0.063,131.0,130.96,17.99732824]
[1744847234790,25.63149878,130.99,130.95,17.99732824]
[1744847235102,25.63149878,130.99,130.94,25.63441392]
[1744847235408,25.63149878,130.99,130.95,17.99732824]
[1744847235792,7.63417054,130.99,130.95,17.99732824]
[1744847236097,7.63417054,130.99,130.95,25.63381177]
[1744847238500,0.063,131.0,130.96,17.99732824]
[1744847238708,0.063,131.0,130.97,17.99732824]
[1744847241502,0.063,131.0,130.97,25.63257379]
[1744847242799,0.063,131.0,130.95,26.0]
[1744847243100,0.063,131.0,130.96,17.99732824]
[1744847243996,0.063,131.0,130.96,25.63310805]
[1744847245511,0.063,131.0,130.97,17.99732824]
[1744847245710,0.063,131.0,130.97,25.63259667]
[1744847246005,0.063,131.0,130.97,7.63526843]
[1744847246204,18.06032824,131.0,130.96,17.99732824]
[1744847246403,0.063,131.0,130.97,17.99732824]
[1744847247711,0.063,131.0,130.96,7.63582751]
[1744847247914,0.063,131.0,130.97,17.99732824]
[1744847248407,0.063,131.0,130.97,25.63260945]
[1744847248597,0.063,131.0,130.97,17.99732824]
[1744847248909,17.99732824,130.99,130.9,19.09715866]
[1744847249111,17.99732824,130.98,130.93,17.99732824]
[1744847249405,100.79732824,130.98,130.93,17.99732824]
[1744847249615,107.09212824,130.98,130.93,17.99732824]
[1744847250600,7.63533633,130.97,130.93,17.99732824]
[1744847251503,5.61626071,130.96,130.93,17.99732824]
[1744847251908,23.61358895,130.96,130.92,43.99732824]
[1744847252101,17.99732824,130.95,130.91,17.99732824]
[1744847252295,17.99732824,130.95,130.9,17.99732824]
[1744847252617,25.63499588,130.94,130.9,17.99732824]
[1744847252797,7.63766764,130.94,130.9,17.99732824]
[1744847253212,7.63766764,130.94,130.89,33.66983356]
[1744847253516,7.63766764,130.94,130.9,17.99732824]
[1744847254715,7.63766764,130.94,130.91,17.99732824]
[1744847255415,90.43675841,130.95,130.91,17.99732824]
[1744847255596,82.8,130.95,130.92,17.99732824]
[1744847256616,90.43660879,130.95,130.92,17.99732824]
[1744847257021,82.8,130.95,130.92,17.99732824]
[1744847258213,1.5457,130.97,130.94,17.99732824]
[1744847258419,9.18107667,130.97,130.94,17.99732824]
[1744847259105,1.5457,130.97,130.94,17.99732824]
[1744847262919,1.5457,130.97,130.94,25.63437036]
[1744847263220,1.5457,130.97,130.95,17.99732824]
[1744847267719,6.2948,130.98,130.95,17.99732824]
[1744847268632,13.92967589,130.98,130.95,17.99732824]
[1744847269730,6.2948,130.98,130.95,17.99732824]
[1744847270732,82.8,130.99,130.97,17.99732824]
[1744847270923,1.6432,131.0,130.97,17.99732824]
[1744847271230,1.6432,131.0,130.97,11.48564285]
[1744847271727,1.6432,131.0,130.98,11.48564285]
[1744847271929,9.27689043,131.0,130.98,11.48564285]
[1744847272341,1.6432,131.0,130.98,11.48564285]
[1744847272929,0.063,131.0,130.98,19.12038991]
[1744847273124,0.063,131.0,130.99,11.48564285]
[1744847273431,0.063,131.0,130.99,30.13529171]
[1744847275012,0.063,131.0,130.99,37.76946225]
[1744847275210,0.063,131.0,130.99,44.21691888]
[1744847279134,0.063,131.0,130.99,44.64340359]
[1744847279429,0.063,131.02,131.01,26.42648471]
[1744847279614,0.063,131.02,131.01,44.35958419]
[1744847280709,0.063,131.05,131.04,44.64964886]
[1744847280926,0.063,131.06,131.04,61.86619896]
[1744847281132,0.063,131.06,131.05,17.93309948]
[1744847281334,0.063,131.06,131.05,25.56377479]
[1744847284515,0.063,131.06,131.05,44.21342365]
[1744847285235,0.063,131.06,131.05,44.63990836]
[1744847288022,0.063,131.07,131.06,18.64964886]
[1744847288227,0.063,131.07,131.06,36.58274834]
[1744847288429,0.063,131.07,131.06,37.00923305]
[1744847290172,0.063,131.07,131.06,44.63932613]
[1744847291259,0.063,131.08,131.06,44.63932613]
[1744847291476,0.063,131.08,131.07,36.58274834]
[1744847291937,0.063,131.08,131.07,37.00923305]
[1744847292551,0.063,131.08,131.07,44.63874399]
[1744847294575,0.063,131.08,131.07,44.21225928]
[1744847294885,0.063,131.08,131.07,70.21225928]
[1744847295051,0.063,131.08,131.07,70.63874399]
[1744847295250,0.063,131.08,131.07,38.16697765]
[1744847295985,0.063,131.09,131.08,0.42648471]
[1744847296182,0.063,131.09,131.08,11.88781785]
[1744847297056,0.063,131.09,131.08,19.51674674]
[1744847297573,0.063,131.13,131.12,44.64964886]
[1744847297775,7.8659,131.2,131.13,0.42648471]
[1744847297978,7.8659,131.2,131.17,11.46133314]
[1744847298854,7.8659,131.2,131.16,11.46133314]
[1744847299057,26.94937221,131.2,131.13,7.62601998]
[1744847299295,15.48803907,131.2,131.16,11.46133314]
[1744847299477,7.8659,131.2,131.18,11.46133314]
[1744847300084,7.8659,131.2,131.17,11.46133314]
[1744847300782,7.8659,131.2,131.18,11.46133314]
[1744847301397,7.8659,131.2,131.19,11.46133314]
[1744847302069,0.063,131.2,131.19,30.110982]
[1744847302663,0.063,131.2,131.19,11.46133314]
[1744847303190,0.063,131.2,131.19,17.8847398]
[1744847303606,0.063,131.23,131.19,36.96087337]
[1744847303791,0.063,131.23,131.2,0.42648471]
[1744847303979,0.063,131.23,131.22,17.8847398]
[1744847304324,0.063,131.23,131.22,36.53438866]
[1744847305268,0.063,131.23,131.22,44.15517817]
[1744847306423,263.9,131.32,131.22,44.15517817]
[1744847306424,46.83670494,131.47,131.31,26.0]
[1744847306700,41.30309227,131.45,131.39,17.8847398]
[1744847306902,17.8847398,131.41,131.34,19.07613357]
[1744847307076,17.8847398,131.4,131.35,43.8847398]
[1744847307270,17.8847398,131.41,131.36,17.8847398]
[1744847307467,17.8847398,131.43,131.38,17.8847398]
[1744847308412,33.3647398,131.44,131.39,17.8847398]
[1744847308719,17.8847398,131.42,131.37,17.8847398]
[1744847308879,15.48,131.44,131.39,17.8847398]
[1744847309084,33.3647398,131.44,131.39,17.8847398]
[1744847309284,15.48,131.44,131.4,17.8847398]
[1744847310310,17.8847398,131.45,131.4,17.8847398]
[1744847310514,17.8847398,131.44,131.39,25.49566909]
[1744847310911,17.8847398,131.44,131.39,17.8847398]
[1744847311110,17.8847398,131.41,131.37,17.8847398]
[1744847311423,17.8847398,131.41,131.36,17.8847398]
[1744847312506,17.8847398,131.41,131.35,33.61324704]
[1744847312507,17.8847398,131.41,131.37,17.8847398]
[1744847312715,25.49436105,131.42,131.37,17.8847398]
[1744847313423,25.49436105,131.42,131.38,17.8847398]
[1744847315113,7.60962125,131.42,131.38,17.8847398]
[1744847317415,17.8847398,131.43,131.39,17.8847398]
[1744847317718,7.60764289,131.45,131.41,17.8847398]
[1744847318117,25.49238269,131.45,131.4,17.8847398]
[1744847318419,17.8847398,131.44,131.39,17.8847398]
[1744847318620,17.8847398,131.43,131.38,43.8847398]
[1744847319622,25.49361372,131.43,131.39,17.8847398]
[1744847320010,7.60887392,131.43,131.39,17.8847398]
[1744847321119,7.60887392,131.43,131.4,17.8847398]
[1744847321626,7.60887392,131.43,131.39,17.8847398]
[1744847322420,17.8847398,131.44,131.39,17.8847398]
[1744847323212,17.8847398,131.43,131.39,17.8847398]
[1744847323425,6.2738,131.49,131.43,18.64964886]
[1744847323724,0.03,131.49,131.48,17.8847398]
[1744847330605,30.03,131.49,131.48,17.8847398]
[1744847332432,37.63514107,131.49,131.4,6.16485528]
[1744847332626,17.8847398,131.48,131.44,17.8847398]
[1744847333135,55.51988087,131.49,131.44,17.8847398]
[1744847333629,7.60687661,131.46,131.44,17.8847398]
[1744847334533,37.60647155,131.47,131.45,17.8847398]
[1744847334722,37.60647155,131.47,131.46,17.8847398]
[1744847335634,30.0,131.47,131.46,17.8847398]
[1744847336025,7.60594633,131.48,131.46,17.8847398]
[1744847337640,7.63514107,131.49,131.46,17.8847398]